[Event "Titled Tuesday Blitz April 19 Early 2022"]
[White "Yang, Kaiqi"]
[Black "Abdrlauf, Elham"]
[WhiteFideId "8604398"]
[BlackFideId "1533533"]
[WhiteElo "2373"]
[BlackElo "2334"]
[Result "0-1"]
[Round "02"]
[TimeControl "180+1"]
[Date "2022.04.19"]
[WhiteClock "0:00:03"]
[BlackClock "0:00:07"]

1. e4 {[%clk 0:03:00]}  c6 {[%clk 0:02:58]} 2. d4 {[%clk 0:03:00]}  d5 {[%clk 0:02:59]} 3. e5 {[%clk 0:03:00]}  c5 {[%clk 0:03:00]} 4. Nf3 {[%clk 0:02:56]}  cxd4 {[%clk 0:02:59]} 5. Nxd4 {[%clk 0:02:56]}  Nc6 {[%clk 0:03:00]} 6. Bb5 {[%clk 0:02:51]}  Bd7 {[%clk 0:02:59]} 7. c4 {[%clk 0:02:39]}  e6 {[%clk 0:02:56]} 8. cxd5 {[%clk 0:02:32]}  Nxd4 {[%clk 0:02:21]} 9. Bxd7+ {[%clk 0:02:31]}  Qxd7 {[%clk 0:02:21]} 10. Qxd4 {[%clk 0:02:31]}  exd5 {[%clk 0:02:16]} 11. Nc3 {[%clk 0:02:30]}  Ne7 {[%clk 0:02:05]} 12. Bg5 {[%clk 0:02:29]}  Nc6 {[%clk 0:01:44]} 13. Qxd5 {[%clk 0:02:26]}  Bb4 {[%clk 0:01:45]} 14. Qxd7+ {[%clk 0:02:00]}  Kxd7 {[%clk 0:01:45]} 15. O-O-O+ {[%clk 0:02:00]}  Ke6 {[%clk 0:01:46]} 16. Nd5 {[%clk 0:01:55]}  Rac8 {[%clk 0:01:35]} 17. Kb1 {[%clk 0:01:54]}  h6 {[%clk 0:01:33]} 18. Bh4 {[%clk 0:01:49]}  g5 {[%clk 0:01:28]} 19. Bg3 {[%clk 0:01:49]}  Rhd8 {[%clk 0:01:28]} 20. Nxb4 {[%clk 0:01:19]}  Nxb4 {[%clk 0:01:29]} 21. Rd6+ {[%clk 0:01:19]}  Rxd6 {[%clk 0:01:20]} 22. exd6 {[%clk 0:01:20]}  Nc6 {[%clk 0:01:19]} 23. h4 {[%clk 0:01:18]}  g4 {[%clk 0:01:14]} 24. h5 {[%clk 0:01:18]}  Kd7 {[%clk 0:01:11]} 25. Re1 {[%clk 0:01:10]}  Rg8 {[%clk 0:00:54]} 26. Bf4 {[%clk 0:01:08]}  a6 {[%clk 0:00:54]} 27. Kc2 {[%clk 0:01:02]}  Nd4+ {[%clk 0:00:53]} 28. Kd3 {[%clk 0:01:00]}  Ne6 {[%clk 0:00:54]} 29. Bxh6 {[%clk 0:00:54]}  Rh8 {[%clk 0:00:54]} 30. Be3 {[%clk 0:00:48]}  Rxh5 {[%clk 0:00:54]} 31. Rd1 {[%clk 0:00:43]}  Rd5+ {[%clk 0:00:51]} 32. Ke2 {[%clk 0:00:43]}  Rxd1 {[%clk 0:00:52]} 33. Kxd1 {[%clk 0:00:44]}  Kxd6 {[%clk 0:00:53]} 34. Ke2 {[%clk 0:00:44]}  Kd5 {[%clk 0:00:53]} 35. Kd3 {[%clk 0:00:44]}  f5 {[%clk 0:00:52]} 36. f3 {[%clk 0:00:36]}  gxf3 {[%clk 0:00:49]} 37. gxf3 {[%clk 0:00:37]}  Nd8 {[%clk 0:00:49]} 38. b3 {[%clk 0:00:35]}  Nc6 {[%clk 0:00:49]} 39. Bd2 {[%clk 0:00:28]}  Nd4 {[%clk 0:00:47]} 40. Ke3 {[%clk 0:00:22]}  Ne6 {[%clk 0:00:46]} 41. Bc3 {[%clk 0:00:20]}  b5 {[%clk 0:00:44]} 42. Bb2 {[%clk 0:00:20]}  Kc5 {[%clk 0:00:43]} 43. Ba3+ {[%clk 0:00:20]}  Kd5 {[%clk 0:00:43]} 44. Bb2 {[%clk 0:00:20]}  Nc7 {[%clk 0:00:41]} 45. Bc3 {[%clk 0:00:20]}  Ne8 {[%clk 0:00:34]} 46. Kf4 {[%clk 0:00:19]}  Ke6 {[%clk 0:00:34]} 47. Bb2 {[%clk 0:00:18]}  Nc7 {[%clk 0:00:33]} 48. Kg5 {[%clk 0:00:17]}  Nd5 {[%clk 0:00:34]} 49. Bc1 {[%clk 0:00:13]}  Nb4 {[%clk 0:00:33]} 50. a3 {[%clk 0:00:13]}  Nd3 {[%clk 0:00:33]} 51. Bd2 {[%clk 0:00:12]}  Nc5 {[%clk 0:00:30]} 52. b4 {[%clk 0:00:10]}  Nd3 {[%clk 0:00:31]} 53. Bc3 {[%clk 0:00:09]}  Ne5 {[%clk 0:00:07]} 54. Kf4 {[%clk 0:00:03]}  Nc4 {[%clk 0:00:08]} 55. Bd4 {[%clk 0:00:02]}  Nxa3 {[%clk 0:00:08]} 56. Bc5 {[%clk 0:00:02]}  Nc4 {[%clk 0:00:08]} 57. Bf8 {[%clk 0:00:02]}  Ne5 {[%clk 0:00:07]} 58. Ke3 {[%clk 0:00:02]}  Nc6 {[%clk 0:00:05]} 59. Bc5 {[%clk 0:00:02]}  a5 {[%clk 0:00:06]} 60. bxa5 {[%clk 0:00:02]}  Nxa5 {[%clk 0:00:06]} 61. Kd4 {[%clk 0:00:02]}  Nc6+ {[%clk 0:00:07]} 62. Kc3 {[%clk 0:00:02]}  Kd5 {[%clk 0:00:08]} 63. Be3 {[%clk 0:00:02]}  Ne5 {[%clk 0:00:08]} 64. f4 {[%clk 0:00:02]}  Nc6 {[%clk 0:00:09]} 65. Bc1 {[%clk 0:00:02]}  Ke4 {[%clk 0:00:10]} 66. Kb3 {[%clk 0:00:02]}  Kd3 {[%clk 0:00:08]} 67. Bb2 {[%clk 0:00:01]}  Ke3 {[%clk 0:00:04]} 68. Bc1+ {[%clk 0:00:02]}  Ke4 {[%clk 0:00:04]} 69. Bb2 {[%clk 0:00:03]}  Kxf4 {[%clk 0:00:05]} 70. Bc1+ {[%clk 0:00:03]}  Ke4 {[%clk 0:00:05]} 71. Bd2 {[%clk 0:00:03]}  f4 {[%clk 0:00:06]} 72. Bc1 {[%clk 0:00:03]}  f3 {[%clk 0:00:07]} 0-1


[Site "https://www.chess.com"]

[Event "Titled Tuesday Blitz April 19 Early 2022"]
[White "Yeletsky, Ivan"]
[Black "Hnydiuk, Aleksander"]
[WhiteFideId "24180327"]
[BlackFideId "1109057"]
[WhiteElo "2319"]
[BlackElo "2374"]
[Result "0-1"]
[Round "02"]
[TimeControl "180+1"]
[Date "2022.04.19"]
[WhiteClock "0:00:02"]
[BlackClock "0:00:07"]

1. d4 {[%clk 0:03:00]}  Nf6 {[%clk 0:02:59]} 2. c4 {[%clk 0:03:00]}  g6 {[%clk 0:02:59]} 3. Nc3 {[%clk 0:03:00]}  Bg7 {[%clk 0:02:59]} 4. e4 {[%clk 0:03:00]}  d6 {[%clk 0:03:00]} 5. h3 {[%clk 0:02:59]}  O-O {[%clk 0:03:00]} 6. Bg5 {[%clk 0:02:59]}  h6 {[%clk 0:02:53]} 7. Be3 {[%clk 0:02:59]}  e5 {[%clk 0:02:50]} 8. d5 {[%clk 0:02:59]}  Na6 {[%clk 0:02:46]} 9. g4 {[%clk 0:02:54]}  Nc5 {[%clk 0:02:45]} 10. Qc2 {[%clk 0:02:53]}  a5 {[%clk 0:02:41]} 11. Nge2 {[%clk 0:02:53]}  c6 {[%clk 0:02:37]} 12. Ng3 {[%clk 0:02:51]}  cxd5 {[%clk 0:02:37]} 13. cxd5 {[%clk 0:02:50]}  Bd7 {[%clk 0:02:34]} 14. Bxc5 {[%clk 0:02:39]}  dxc5 {[%clk 0:02:34]} 15. Bb5 {[%clk 0:02:38]}  c4 {[%clk 0:02:26]} 16. a4 {[%clk 0:02:28]}  Ne8 {[%clk 0:02:07]} 17. d6 {[%clk 0:02:23]}  Nxd6 {[%clk 0:01:51]} 18. Bxd7 {[%clk 0:02:23]}  Qxd7 {[%clk 0:01:51]} 19. O-O-O {[%clk 0:02:17]}  Qc6 {[%clk 0:01:48]} 20. Rd5 {[%clk 0:02:17]}  Rfb8 {[%clk 0:01:32]} 21. Rhd1 {[%clk 0:02:16]}  Bf8 {[%clk 0:01:33]} 22. Qd2 {[%clk 0:02:12]}  Ne8 {[%clk 0:01:13]} 23. g5 {[%clk 0:01:24]}  Nc7 {[%clk 0:00:59]} 24. Rd7 {[%clk 0:01:23]}  Ne6 {[%clk 0:00:39]} 25. gxh6 {[%clk 0:01:23]}  Nf4 {[%clk 0:00:28]} 26. h7+ {[%clk 0:01:18]}  Kxh7 {[%clk 0:00:27]} 27. Rxf7+ {[%clk 0:01:18]}  Kg8 {[%clk 0:00:28]} 28. Rd7 {[%clk 0:01:05]}  Nd3+ {[%clk 0:00:27]} 29. Rxd3 {[%clk 0:01:04]}  cxd3 {[%clk 0:00:27]} 30. Nf5 {[%clk 0:00:36]}  b5 {[%clk 0:00:21]} 31. Kb1 {[%clk 0:00:26]}  bxa4 {[%clk 0:00:20]} 32. Rg1 {[%clk 0:00:13]}  a3 {[%clk 0:00:19]} 33. Qxd3 {[%clk 0:00:13]}  Rxb2+ {[%clk 0:00:17]} 34. Ka1 {[%clk 0:00:13]}  Rc8 {[%clk 0:00:14]} 35. Ne2 {[%clk 0:00:02]}  Qc4 {[%clk 0:00:10]} 36. Rxg6+ {[%clk 0:00:01]}  Kh7 {[%clk 0:00:08]} 37. Qd7+ {[%clk 0:00:01]}  Kxg6 {[%clk 0:00:09]} 38. Nh4+ {[%clk 0:00:01]}  Kh6 {[%clk 0:00:08]} 39. Qg4 {[%clk 0:00:02]}  Qa2# {[%clk 0:00:07]} 0-1


[Site "https://www.chess.com"]

[Event "Titled Tuesday Blitz April 19 Early 2022"]
[White "Zakhartsov, Vladimir"]
[Black "Sukandar, Irine Kharisma"]
[WhiteFideId "4145097"]
[BlackFideId "7101937"]
[WhiteElo "2491"]
[BlackElo "2293"]
[Result "1-0"]
[Round "02"]
[TimeControl "180+1"]
[Date "2022.04.19"]
[WhiteClock "0:01:10"]
[BlackClock "0:00:04"]

1. e4 {[%clk 0:02:52]}  e5 {[%clk 0:02:59]} 2. Nc3 {[%clk 0:02:50]}  Nf6 {[%clk 0:02:57]} 3. f4 {[%clk 0:02:50]}  d6 {[%clk 0:02:49]} 4. Nf3 {[%clk 0:02:49]}  Bg4 {[%clk 0:02:48]} 5. Bc4 {[%clk 0:02:48]}  Be7 {[%clk 0:02:46]} 6. fxe5 {[%clk 0:02:46]}  Bxf3 {[%clk 0:02:44]} 7. Qxf3 {[%clk 0:02:43]}  dxe5 {[%clk 0:02:44]} 8. Qg3 {[%clk 0:02:41]}  O-O {[%clk 0:02:41]} 9. O-O {[%clk 0:02:38]}  Nc6 {[%clk 0:02:41]} 10. d3 {[%clk 0:02:38]}  a6 {[%clk 0:02:20]} 11. Bh6 {[%clk 0:02:34]}  Ne8 {[%clk 0:02:04]} 12. a3 {[%clk 0:02:29]}  Bf6 {[%clk 0:01:47]} 13. Nd5 {[%clk 0:02:27]}  Bh4 {[%clk 0:01:46]} 14. Qg4 {[%clk 0:02:24]}  Kh8 {[%clk 0:01:40]} 15. Be3 {[%clk 0:02:22]}  Nd4 {[%clk 0:01:33]} 16. Rac1 {[%clk 0:02:19]}  Nd6 {[%clk 0:01:29]} 17. Ba2 {[%clk 0:02:17]}  f5 {[%clk 0:01:28]} 18. exf5 {[%clk 0:02:14]}  N6xf5 {[%clk 0:01:28]} 19. Bd2 {[%clk 0:02:13]}  c6 {[%clk 0:01:16]} 20. Nc3 {[%clk 0:02:12]}  Be7 {[%clk 0:01:11]} 21. Ne4 {[%clk 0:02:12]}  Nd6 {[%clk 0:01:03]} 22. Rxf8+ {[%clk 0:02:02]}  Qxf8 {[%clk 0:01:03]} 23. Rf1 {[%clk 0:02:02]}  Qc8 {[%clk 0:01:01]} 24. Nxd6 {[%clk 0:01:58]}  Bxd6 {[%clk 0:00:58]} 25. Qd1 {[%clk 0:01:58]}  Bc5 {[%clk 0:00:52]} 26. Kh1 {[%clk 0:01:56]}  Qd8 {[%clk 0:00:47]} 27. a4 {[%clk 0:01:54]}  Qh4 {[%clk 0:00:46]} 28. c3 {[%clk 0:01:53]}  e4 {[%clk 0:00:32]} 29. cxd4 {[%clk 0:01:50]}  Bd6 {[%clk 0:00:32]} 30. g3 {[%clk 0:01:39]}  Bxg3 {[%clk 0:00:32]} 31. Qe2 {[%clk 0:01:39]}  exd3 {[%clk 0:00:31]} 32. Qg2 {[%clk 0:01:37]}  Bd6 {[%clk 0:00:22]} 33. Rf7 {[%clk 0:01:35]}  Rg8 {[%clk 0:00:16]} 34. Rd7 {[%clk 0:01:31]}  Bxh2 {[%clk 0:00:14]} 35. Qxh2 {[%clk 0:01:29]}  Qe4+ {[%clk 0:00:13]} 36. Qg2 {[%clk 0:01:28]}  Qh4+ {[%clk 0:00:13]} 37. Kg1 {[%clk 0:01:28]}  Qh5 {[%clk 0:00:13]} 38. Bxg8 {[%clk 0:01:11]}  Qd1+ {[%clk 0:00:12]} 39. Kh2 {[%clk 0:01:12]}  Qh5+ {[%clk 0:00:12]} 40. Kg3 {[%clk 0:01:13]}  Qg6+ {[%clk 0:00:09]} 41. Kf2 {[%clk 0:01:11]}  Qf5+ {[%clk 0:00:10]} 42. Ke3 {[%clk 0:01:10]}  Qxd7 {[%clk 0:00:10]} 43. Bc4 {[%clk 0:01:10]}  b5 {[%clk 0:00:06]} 44. axb5 {[%clk 0:01:10]}  axb5 {[%clk 0:00:06]} 45. Bxd3 {[%clk 0:01:10]}  Qe6+ {[%clk 0:00:04]} 46. Qe4 {[%clk 0:01:09]}  Qh3+ {[%clk 0:00:05]} 47. Ke2 {[%clk 0:01:09]}  Qh2+ {[%clk 0:00:05]} 48. Kd1 {[%clk 0:01:10]}  Qg1+ {[%clk 0:00:04]} 49. Kc2 {[%clk 0:01:10]} 1-0


[Site "https://www.chess.com"]

[Event "Titled Tuesday Blitz April 19 Early 2022"]
[White "Zemerov, Vladimir"]
[Black "Mitrabha, Guha"]
[WhiteFideId "4111583"]
[BlackFideId "5057000"]
[WhiteElo "2277"]
[BlackElo "2468"]
[Result "0-1"]
[Round "02"]
[TimeControl "180+1"]
[Date "2022.04.19"]
[WhiteClock "0:00:24"]
[BlackClock "0:01:21"]

1. d4 {[%clk 0:02:22]}  Nf6 {[%clk 0:02:58]} 2. c4 {[%clk 0:02:21]}  g6 {[%clk 0:02:59]} 3. Nc3 {[%clk 0:02:20]}  Bg7 {[%clk 0:03:00]} 4. e4 {[%clk 0:02:20]}  O-O {[%clk 0:03:00]} 5. h3 {[%clk 0:02:20]}  d6 {[%clk 0:03:00]} 6. Bg5 {[%clk 0:02:20]}  c5 {[%clk 0:02:56]} 7. d5 {[%clk 0:02:19]}  e6 {[%clk 0:02:56]} 8. Bd3 {[%clk 0:02:18]}  h6 {[%clk 0:02:56]} 9. Be3 {[%clk 0:02:16]}  exd5 {[%clk 0:02:56]} 10. cxd5 {[%clk 0:02:16]}  Re8 {[%clk 0:02:55]} 11. Nge2 {[%clk 0:02:13]}  Na6 {[%clk 0:02:54]} 12. O-O {[%clk 0:02:11]}  Nc7 {[%clk 0:02:53]} 13. a4 {[%clk 0:02:09]}  Na6 {[%clk 0:02:52]} 14. Rc1 {[%clk 0:02:07]}  Nb4 {[%clk 0:02:52]} 15. Bb1 {[%clk 0:02:07]}  a6 {[%clk 0:02:52]} 16. Ng3 {[%clk 0:02:01]}  b5 {[%clk 0:02:37]} 17. axb5 {[%clk 0:01:57]}  axb5 {[%clk 0:02:38]} 18. Nxb5 {[%clk 0:01:57]}  Ba6 {[%clk 0:02:38]} 19. Nc3 {[%clk 0:01:31]}  Bxf1 {[%clk 0:02:37]} 20. Qxf1 {[%clk 0:01:29]}  Nd7 {[%clk 0:02:36]} 21. f4 {[%clk 0:01:22]}  Ra1 {[%clk 0:02:31]} 22. e5 {[%clk 0:01:10]}  dxe5 {[%clk 0:02:27]} 23. f5 {[%clk 0:01:10]}  e4 {[%clk 0:02:24]} 24. fxg6 {[%clk 0:01:07]}  fxg6 {[%clk 0:02:23]} 25. Ngxe4 {[%clk 0:01:03]}  Nf6 {[%clk 0:02:18]} 26. Nxf6+ {[%clk 0:00:59]}  Qxf6 {[%clk 0:02:17]} 27. Bxc5 {[%clk 0:00:52]}  Na6 {[%clk 0:01:25]} 28. b4 {[%clk 0:00:46]}  Qxf1+ {[%clk 0:01:22]} 29. Kxf1 {[%clk 0:00:44]}  Nxc5 {[%clk 0:01:22]} 30. Ba2 {[%clk 0:00:27]}  Rxc1+ {[%clk 0:01:21]} 31. Kf2 {[%clk 0:00:24]}  Rxc3 {[%clk 0:01:21]} 0-1


[Site "https://www.chess.com"]

[Event "Titled Tuesday Blitz April 19 Early 2022"]
[White "Zhu, Jiner"]
[Black "Martin Duque, Jesus"]
[WhiteFideId "8608059"]
[BlackFideId "2208954"]
[WhiteElo "2281"]
[BlackElo "2243"]
[Result "1-0"]
[Round "02"]
[TimeControl "180+1"]
[Date "2022.04.19"]
[WhiteClock "0:00:11"]
[BlackClock "0:00:01"]

1. e4 {[%clk 0:03:00]}  c5 {[%clk 0:02:59]} 2. Nf3 {[%clk 0:03:00]}  e6 {[%clk 0:03:00]} 3. d4 {[%clk 0:03:00]}  cxd4 {[%clk 0:03:00]} 4. Nxd4 {[%clk 0:03:01]}  a6 {[%clk 0:03:01]} 5. Bd3 {[%clk 0:03:01]}  Nf6 {[%clk 0:02:59]} 6. O-O {[%clk 0:02:59]}  d6 {[%clk 0:02:59]} 7. c4 {[%clk 0:02:58]}  g6 {[%clk 0:02:59]} 8. Nc3 {[%clk 0:02:54]}  Bg7 {[%clk 0:02:51]} 9. Be3 {[%clk 0:02:52]}  O-O {[%clk 0:02:51]} 10. f3 {[%clk 0:02:47]}  Nbd7 {[%clk 0:02:51]} 11. Rc1 {[%clk 0:02:43]}  b6 {[%clk 0:02:51]} 12. Qd2 {[%clk 0:02:42]}  Bb7 {[%clk 0:02:51]} 13. Rfd1 {[%clk 0:02:40]}  Rc8 {[%clk 0:02:51]} 14. Bf1 {[%clk 0:02:37]}  Re8 {[%clk 0:02:51]} 15. Kh1 {[%clk 0:02:27]}  Qc7 {[%clk 0:02:51]} 16. b3 {[%clk 0:02:23]}  Qb8 {[%clk 0:02:27]} 17. Nde2 {[%clk 0:02:19]}  Bf8 {[%clk 0:02:25]} 18. Rc2 {[%clk 0:01:55]}  Bc6 {[%clk 0:02:18]} 19. Nd4 {[%clk 0:01:54]}  Ba8 {[%clk 0:02:08]} 20. Qf2 {[%clk 0:01:49]}  Rc7 {[%clk 0:02:02]} 21. Rcc1 {[%clk 0:01:30]}  Rec8 {[%clk 0:01:47]} 22. a4 {[%clk 0:01:27]}  Nc5 {[%clk 0:01:29]} 23. b4 {[%clk 0:01:23]}  Ncd7 {[%clk 0:01:22]} 24. Nb3 {[%clk 0:01:23]}  Ne5 {[%clk 0:01:22]} 25. Bxb6 {[%clk 0:01:20]}  Rb7 {[%clk 0:01:22]} 26. c5 {[%clk 0:01:04]}  Nfd7 {[%clk 0:01:18]} 27. a5 {[%clk 0:01:01]}  Nc6 {[%clk 0:01:19]} 28. Bxa6 {[%clk 0:00:59]}  Nxb4 {[%clk 0:01:19]} 29. Bxb7 {[%clk 0:00:59]}  Bxb7 {[%clk 0:01:19]} 30. Nb5 {[%clk 0:00:33]}  Ba6 {[%clk 0:01:15]} 31. Nxd6 {[%clk 0:00:31]}  Bxd6 {[%clk 0:01:12]} 32. cxd6 {[%clk 0:00:32]}  Nd3 {[%clk 0:01:08]} 33. Rxc8+ {[%clk 0:00:30]}  Qxc8 {[%clk 0:01:09]} 34. Qd2 {[%clk 0:00:24]}  N7e5 {[%clk 0:01:08]} 35. Nd4 {[%clk 0:00:20]}  Qc4 {[%clk 0:01:08]} 36. h3 {[%clk 0:00:18]}  h5 {[%clk 0:01:08]} 37. Nc2 {[%clk 0:00:16]}  h4 {[%clk 0:00:51]} 38. Ne1 {[%clk 0:00:16]}  Nb4 {[%clk 0:00:45]} 39. d7 {[%clk 0:00:13]}  Qf1+ {[%clk 0:00:44]} 40. Kh2 {[%clk 0:00:13]}  Nxd7 {[%clk 0:00:40]} 41. Qxd7 {[%clk 0:00:14]}  Be2 {[%clk 0:00:37]} 42. Qd8+ {[%clk 0:00:13]}  Kg7 {[%clk 0:00:37]} 43. Bd4+ {[%clk 0:00:14]}  e5 {[%clk 0:00:01]} 44. Bxe5+ {[%clk 0:00:13]}  Kh6 {[%clk 0:00:01]} 45. Qxh4# {[%clk 0:00:11]} 1-0


[Site "https://www.chess.com"]

[Event "Titled Tuesday Blitz April 19 Early 2022"]
[White "Zhurikhin, Alexander"]
[Black "Manukian, Artak"]
[WhiteFideId "4139569"]
[BlackFideId "13301373"]
[WhiteElo "2204"]
[BlackElo "2345"]
[Result "1-0"]
[Round "02"]
[TimeControl "180+1"]
[Date "2022.04.19"]
[WhiteClock "0:01:16"]
[BlackClock "0:01:15"]

1. c4 {[%clk 0:03:00]}  e5 {[%clk 0:02:24]} 2. Nc3 {[%clk 0:03:00]}  Nc6 {[%clk 0:02:24]} 3. Nf3 {[%clk 0:03:00]}  Bc5 {[%clk 0:02:22]} 4. e3 {[%clk 0:02:59]}  d6 {[%clk 0:02:19]} 5. d4 {[%clk 0:02:59]}  Bb6 {[%clk 0:02:19]} 6. Be2 {[%clk 0:02:50]}  f5 {[%clk 0:02:17]} 7. O-O {[%clk 0:02:50]}  Nf6 {[%clk 0:02:17]} 8. dxe5 {[%clk 0:02:48]}  Nxe5 {[%clk 0:02:13]} 9. Nxe5 {[%clk 0:02:41]}  dxe5 {[%clk 0:02:14]} 10. Qxd8+ {[%clk 0:02:41]}  Kxd8 {[%clk 0:02:14]} 11. Na4 {[%clk 0:02:41]}  c6 {[%clk 0:02:12]} 12. Nxb6 {[%clk 0:02:37]}  axb6 {[%clk 0:02:11]} 13. b3 {[%clk 0:02:38]}  Be6 {[%clk 0:02:02]} 14. Bb2 {[%clk 0:02:38]}  e4 {[%clk 0:02:01]} 15. Rfd1+ {[%clk 0:02:35]}  Ke7 {[%clk 0:01:57]} 16. Bd4 {[%clk 0:02:33]}  c5 {[%clk 0:01:57]} 17. Be5 {[%clk 0:02:29]}  Rhd8 {[%clk 0:01:54]} 18. a4 {[%clk 0:02:22]}  Rxd1+ {[%clk 0:01:48]} 19. Rxd1 {[%clk 0:02:23]}  Rd8 {[%clk 0:01:48]} 20. Bc7 {[%clk 0:01:53]}  Rxd1+ {[%clk 0:01:47]} 21. Bxd1 {[%clk 0:01:54]}  Nd7 {[%clk 0:01:48]} 22. f3 {[%clk 0:01:47]}  g6 {[%clk 0:01:36]} 23. Kf2 {[%clk 0:01:44]}  Kf6 {[%clk 0:01:29]} 24. Kg3 {[%clk 0:01:25]}  h5 {[%clk 0:01:25]} 25. h4 {[%clk 0:01:19]}  g5 {[%clk 0:01:15]} 26. Bd8+ {[%clk 0:01:16]} 1-0


[Site "https://www.chess.com"]

[Event "Titled Tuesday Blitz April 19 Early 2022"]
[White "Zia, Tahsin Tajwar"]
[Black "Molina, Roberto Junio Brito"]
[WhiteFideId "10211888"]
[BlackFideId "2109450"]
[WhiteElo "1800"]
[BlackElo "2432"]
[Result "0-1"]
[Round "02"]
[TimeControl "180+1"]
[Date "2022.04.19"]
[WhiteClock "0:00:12"]
[BlackClock "0:00:49"]

1. d4 {[%clk 0:03:00]}  d5 {[%clk 0:02:59]} 2. c4 {[%clk 0:02:57]}  c6 {[%clk 0:02:59]} 3. Nf3 {[%clk 0:02:58]}  Nf6 {[%clk 0:03:00]} 4. g3 {[%clk 0:02:54]}  dxc4 {[%clk 0:03:00]} 5. Bg2 {[%clk 0:02:53]}  b5 {[%clk 0:03:00]} 6. Ne5 {[%clk 0:02:43]}  Bb7 {[%clk 0:03:00]} 7. O-O {[%clk 0:02:41]}  e6 {[%clk 0:03:00]} 8. b3 {[%clk 0:02:38]}  cxb3 {[%clk 0:03:00]} 9. axb3 {[%clk 0:02:35]}  a5 {[%clk 0:02:58]} 10. Nc3 {[%clk 0:02:34]}  Qb6 {[%clk 0:02:58]} 11. Ne4 {[%clk 0:02:30]}  Nxe4 {[%clk 0:02:56]} 12. Bxe4 {[%clk 0:02:31]}  f6 {[%clk 0:02:53]} 13. Nf3 {[%clk 0:02:22]}  Nd7 {[%clk 0:02:53]} 14. Be3 {[%clk 0:02:15]}  c5 {[%clk 0:02:26]} 15. d5 {[%clk 0:02:03]}  e5 {[%clk 0:02:23]} 16. Nh4 {[%clk 0:01:53]}  g6 {[%clk 0:02:22]} 17. g4 {[%clk 0:01:28]}  Be7 {[%clk 0:02:15]} 18. Ng2 {[%clk 0:01:22]}  Bd6 {[%clk 0:01:56]} 19. f3 {[%clk 0:01:14]}  O-O {[%clk 0:01:48]} 20. Qc2 {[%clk 0:01:12]}  Rf7 {[%clk 0:01:42]} 21. h4 {[%clk 0:00:58]}  Raf8 {[%clk 0:01:39]} 22. Bh6 {[%clk 0:00:58]}  Re8 {[%clk 0:01:37]} 23. h5 {[%clk 0:00:57]}  c4+ {[%clk 0:01:10]} 24. Kh1 {[%clk 0:00:42]}  cxb3 {[%clk 0:01:10]} 25. Qb1 {[%clk 0:00:39]}  f5 {[%clk 0:01:02]} 26. gxf5 {[%clk 0:00:32]}  gxf5 {[%clk 0:01:03]} 27. Bxf5 {[%clk 0:00:30]}  Bxd5 {[%clk 0:00:59]} 28. Nh4 {[%clk 0:00:25]}  Bc5 {[%clk 0:00:54]} 29. Bxh7+ {[%clk 0:00:18]}  Rxh7 {[%clk 0:00:50]} 30. Qg6+ {[%clk 0:00:14]}  Qxg6 {[%clk 0:00:50]} 31. Nxg6 {[%clk 0:00:12]}  Rxh6 {[%clk 0:00:49]} 0-1


[Site "https://www.chess.com"]

[Event "Titled Tuesday Blitz April 19 Early 2022"]
[White "Akhmedinov, Satbek"]
[Black "Samunenkov, Ihor"]
[WhiteFideId "13714287"]
[BlackFideId "14187086"]
[WhiteElo "1889"]
[BlackElo "2409"]
[Result "1-0"]
[Round "03"]
[TimeControl "180+1"]
[Date "2022.04.19"]
[WhiteClock "0:01:16"]
[BlackClock "0:00:09"]

1. e4 {[%clk 0:03:00]}  c6 {[%clk 0:02:57]} 2. d4 {[%clk 0:03:00]}  d5 {[%clk 0:02:58]} 3. exd5 {[%clk 0:03:01]}  cxd5 {[%clk 0:02:58]} 4. c4 {[%clk 0:03:02]}  Nf6 {[%clk 0:02:57]} 5. Nc3 {[%clk 0:03:02]}  Nc6 {[%clk 0:02:57]} 6. Nf3 {[%clk 0:03:02]}  Bg4 {[%clk 0:02:57]} 7. cxd5 {[%clk 0:03:01]}  Nxd5 {[%clk 0:02:58]} 8. Bc4 {[%clk 0:03:01]}  e6 {[%clk 0:02:48]} 9. Bxd5 {[%clk 0:02:54]}  exd5 {[%clk 0:02:47]} 10. O-O {[%clk 0:02:51]}  Be7 {[%clk 0:02:44]} 11. h3 {[%clk 0:02:48]}  Bh5 {[%clk 0:02:27]} 12. g4 {[%clk 0:02:47]}  Bg6 {[%clk 0:02:27]} 13. Qb3 {[%clk 0:02:47]}  O-O {[%clk 0:01:50]} 14. Qxb7 {[%clk 0:02:39]}  Rc8 {[%clk 0:01:49]} 15. Be3 {[%clk 0:02:35]}  Bd6 {[%clk 0:00:55]} 16. Qb5 {[%clk 0:02:16]}  Nb4 {[%clk 0:00:46]} 17. Rad1 {[%clk 0:02:04]}  Bd3 {[%clk 0:00:38]} 18. Rxd3 {[%clk 0:01:58]}  a6 {[%clk 0:00:38]} 19. Qb7 {[%clk 0:01:47]}  Rb8 {[%clk 0:00:36]} 20. Qa7 {[%clk 0:01:43]}  Nxd3 {[%clk 0:00:36]} 21. Qxa6 {[%clk 0:01:40]}  Nxb2 {[%clk 0:00:35]} 22. Nxd5 {[%clk 0:01:40]}  Bh2+ {[%clk 0:00:32]} 23. Kxh2 {[%clk 0:01:39]}  Qxd5 {[%clk 0:00:32]} 24. Ne5 {[%clk 0:01:37]}  f6 {[%clk 0:00:29]} 25. Qc6 {[%clk 0:01:17]}  Qf7 {[%clk 0:00:09]} 26. Nxf7 {[%clk 0:01:16]} 1-0


[Site "https://www.chess.com"]